{"text_format":"1","workbook":"xlsx","n_sheets":3,"sheets":["PARA LLENAR","PARA IMPRIMIR","Hoja3"],"not_rendered":{"charts":0,"images":2,"macros":1,"external_links":1,"defined_names":2,"comments":0,"pivot_tables":0},"unopened":[],"bounds":{"document_bytes":16777216,"sheet_cells":100000,"rows_first":2000,"rows_last":500,"rows_between":2000,"halvings":0,"cell_chars":16384,"cell_head_chars":4096},"cells_cut":0,"cells_raw":0,"read":"whole","date_system":"1900"}

{"sheet":"PARA LLENAR","index":0,"n_rows":132,"n_cols":20,"rows_kept":132,"cut":false,"hidden":false,"merged":[[67,0,67,3],[0,3,66,3],[0,0,66,0],[0,1,0,2],[1,1,1,2],[3,1,3,2],[56,1,56,2],[22,1,22,2],[27,1,27,2],[31,1,31,2],[40,1,40,2],[47,1,47,2]]}
[]
[null,"REGISTRO DE DATOS DE INGRESO A PLANILLA DE CONTRATISTAS POR CONCEPTO\nDE HONORARIOS Y/O SERVICIOS PERSONALES "]
[]
[null,"DATOS DEL CONTRATISTA"]
[null,"FECHA DE DILIGENCIAMIENTO PLANILLA","Fecha",null,null,null,null,null,null,null,null,"ingrese la fecha de entrega de su cuenta de cobro, recuerde que debe ser un dia habil despues de la fecha de corte de su contrato"]
[null,"NOMBRE   ","Nombre",null,null,null,null,null,null,null,null,"registre su nombre completo"]
[null,"Identificacion","Cedula",null,null,null,null,null,null,null,null,"registre su numero de identificacion"]
[null,"NÚMERO TELEFÓNICO DE CONTACTO","Telefono",null,null,null,null,null,null,null,null,"registre su numero de contacto"]
[null,"DIRECCIÓN ELECTRÓNICA","mail",null,null,null,null,null,null,null,null,"registre su email"]
[null,"NOMBRE DEL BANCO AL CUAL CONSIGNAR","Banco",null,"ACTIVIDAD FÍSICA",null,null,null,null,null,null,"registre la entidad banccaria-recuerde que debe ser la misma, que paparece en la certificacion que usted entrego para la fiam de su contrato"]
[null,"TIPO DE CUENTA",null,null,"CULTURA","AHORRO",null,null,null,null,null,"indique según corresponda"]
[null,"NÚMERO DE CUENTA","N° Cuenta",null,"ADMINISTRATIVA Y FINANCIERA","CORRIENTE",null,null,null,null,null,"registre el numero de la cuenta donde se va a consignar el valor de este documento-recuerde que debe ser la misma, que paparece en la certificacion que usted entrego para la firma de su contrato"]
[null,"CLASIFICACIÓN DE LAS PERSONAS NATURALES",null,null,null,null,"NO","EMPLEADO-CONTRATISTA ",null,null,null,"seleccione el tipo de clasificacion de persona/según corresponda"]
[null,"FONDO DE PENSIONES","Pension",null,null,null,null,null,null,null,null,"ingrese el  nombre de la eps donde se encuentra  afiliado"]
[null,"EPS","EPS",null,null,null,null,null,null,null,null,"ingrese el  nombre del fondo de pensiones donde se encuentra afiliado"]
[null,"ARL","ARL",null,null,null,null,null,null,null,null,"ingrese el  nombre de la ARL  donde se encuentra afiliado"]
[null,"OTRAS-CAJA DE COMPENSACION","n/a",null,null,null,null,null,null,null,null,"registre el nombre de la caja de compensacion donde se encuentra afiliado"]
[null,"OBJETO CONTRACTUAL ","Objeto",null,null,null,null,null,null,null,null,"digite el objeto contractual de su contrato "]
[null,"PROYECTO ASOCIADO A ESTE PAGO","EVENTOS RECREATIVOS Y DE LA ACTIVIDAD FISICA - EVENTOS CULTURALES",null,null,null,null,null,null,null,null,"seleccione según corresponda"]
[null,"ES DECLARANTE DE RENTA?","NO",null,null,null,null,null,null,null,null,"seleccione según corresponda",null,null,"SI "]
[null,"ES PENSIONADO?","NO",null,null,null,null,null,null,null,null,"seleccione según corresponda",null,null,"NO"]
[null,null,null,null,"ESCUELA DE FORMACION DEPORTIVA"]
[null,"DATOS DEL SUPERVISOR",null,null,"ORGANISMOS DEPORTIVOS"]
[null,"NOMBRES Y APELLIDOS","JEIMMY LORENA OLAYA",null,"EVENTOS DEPORTIVOS",null,null,null,null,"JEIMMY LORENA OLAYA",null,"seleccione según corresponda"]
[null,"CARGO",{"$f":"IF(C24=J24,\"SUB GERENTE ADMINISTRATIVA Y FINANCIERA\",IF(C24=J25,\"SUB GERENTE DE CULTURA\",IF(C24=J26,\"GERENTE GENERAL\",IF(C24=J27,\"COORDINADOR DE DEPORTE\",IF(C24=J28,\"COORDINADOR DE ACTIVIDAD FÍSICA\",IF(C24=J29,\"SUB GERENTE ADMINISTRATIVA Y FINANCIERA\",\"ERROR, SUPERVISOR NO ASIGNADO\"))))))","v":"SUB GERENTE ADMINISTRATIVA Y FINANCIERA"},null,"MANTENIMIENTO DE ESCENARIOS DEPORTIVOS",null,null,null,null,"LILIAN OTALORA"]
[null,"DIRECCIÓN ELECTRÓNICA",{"$f":"IF(C24=J24,\"subgerenciaadministrativa@imcrdz.com\",IF(C24=J25,\"subgerenciacultura@imcrdz.com\",IF(C24=J26,\"gerencia@imcrdz.com\",IF(C24=J27,\"coordinaciondeporte@imcrdz.com\",IF(C24=J28,\"coordinacionactividadfisica@imcrdz.com\",IF(C24=J29,\"subgerenciaadministrativa@imcrdz.com\",\"ERROR, SUPERVISOR NO ASIGNADO\"))))))","v":"subgerenciaadministrativa@imcrdz.com"},null,"INFRAESTRUCTURA DEPORTIVA, RECREATIVA Y  DE LA ACTIVIDAD FISICA",null,null,null,null,"FREDDY ERNESTO ESPINOSA CÁCERES"]
[null,null,null,null,"ATENCION A POBLACION VULNERABLE",null,null,null,null,"CARLOS POVEDA"]
[null,"DATOS DEL ORDENADOR DEL PAGO",null,null,"ESTUDIANTES FELICES, ACTIVOS Y SALUDABLES",null,null,null,null,"CESAR AUGUSTO OLIVEROS"]
[null,"NOMBRES Y APELLIDOS","FREDDY ERNESTO ESPINOSA CÁCERES",null,"CENTRO DE EDUCACION MOTRIZ"]
[null,"CARGO","GERENTE GENERAL IMCRDZ",null,"ACTIVIDAD FISICA PARA LA SALUD"]
[null,null,null,null,"CICLOVIDA"]
[null,"DATOS DEL CONTRATO OBJETO DE COBRO",null,null,"EVENTOS RECREATIVOS Y DE LA ACTIVIDAD FISICA"]
[null,"Nº DEL CERTIFICADO PRESUPUESTAL","CDP",null,"CAPACITACIONES PROYECTOS ACTIVIDAD FÍSICA Y RECREATIVA",null,null,null,null,null,null,"registre el numero asignado-puede buscarlo en  el expediente de su contrato"]
[null,"Nº DEL CONTRATO ","N° Contrato",null,"ESCUELAS  DE FORMACION ARTISTICA Y CULTURAL",null,null,null,null,null,null,"registre el numero asignado-puede buscarlo en  el expediente de su contrato"]
[null,"Nº DEL REGISTRO PRESUPUESTAL","RP",null,"EVENTOS CULTURALES",null,null,null,null,null,null,"registre el numero asignado-puede buscarlo en  el expediente de su contrato"]
[null,"FECHA DE INICIO","Inicio",null,"BIBLIOTECAS PUBLICAS",null,null,null,null,null,null,"registre la fecha de inicio de su contrato-esta informacion la puede encontrar en el expediente de su contrato"]
[null,"FECHA DE TERMINACIÓN","Fin",null,"ACERCAMIENTO DE LA PRIMERA INFANCIA A LAS ARTES",null,null,null,null,null,null,"registre la fecha de terminacion  de su contrato-esta informacion la puede encontrar en el expediente de su contrato"]
[null,"VALOR TOTAL DEL CONTRATO","Valor total",null," MIL GUITARRAS",null,null,null,null,null,null,"registre el valor total de su u contrato-esta informacion la puede encontrar en el expediente de su contrato"]
[null,"FORMA DE ESTIMACIÓN DEL PAGO","MENSUAL",null,"PORTAFOLIO DE ESTIMULOS"]
[null,null,null,null,"IDENTIFICACION Y SALVAGUARDIA DE BIC-BIENES DE INTERES CULTURAL"]
[null,"DATOS DEL PAGO",null,null,"MANTENIMIENTO DE BIC"]
[null,"FECHA INICIO DEL PERIODO OBJETO DE PAGO","Inicio",null,"FUNCIONAMIENTO",null,null,null,null,null,null,"registre la fecha inicial del pago del periodo"]
[null,"FECHA FIN DEL  PERIODO OBJETO DE PAGO","Fin",null,"APOYO  A LA GESTION ADMINISTRATIVA DEPORTES ",null,null,null,null,null,null,"registre la fecha inicial del pago del periodo"]
[null,"NUMERO DEL PAGO","N° pago",null,"APOYO  A LA GESTION ADMINISTRATIVA CULTURAL",null,null,null,null,null,null,"registre el  numero de pago "]
[null,"SALDO ANTERIOR DEL CONTRATO","Saldo",null,"EVENTOS RECREATIVOS Y DE LA ACTIVIDAD FISICA - EVENTOS CULTURALES"]
[null,"NUEVO SALDO DEL CONTRATO",{"$f":"+C45-C55","v":{"$error":"#VALUE!"}}]
[]
[null,"SI EL PAGO SE REALIZA POR PERIODO DE TIEMPO PRESTADO O PROPORCIONAL:"]
[null,"VALOR PAGO MENSUAL","Valor Mensual"]
[null,"VALOR DEL PAGO X DIA",{"$f":"C49/30","v":{"$error":"#VALUE!"}}]
[null,"TARIFA ICA",7.0000000000000001E-3,null,null,null,null,null,null,null,null,"TARIFA 0.007 PARA ADMINISTRATVOS Y PROFESORES"]
[null,"ESTAMPILLAS",0,null,null,null,null,null,null,null,null,"SOLO QUIENES SOBREPASE VALOR MENSUAL DE 2.950.000"]
[null,"OTRAS",0,null,null,null,null,null,null,null,null,"Registre el porventaje de otro descuento no estipulado anteriormente"]
[null,"TOTAL DÍAS A LIQUIDAR",{"$f":"C60","v":"Dias Cotizados"},null,null,null,null,null,null,null,null,"registre el numero de dias a liquidar"]
[null,"VALOR A PAGAR",{"$f":"(C50*C54)","v":{"$error":"#VALUE!"}}]
[]
[null,"APORTES  A SEGURIDAD SOCIAL Y AHORRO EN CUENTAS AFC",null,null,null,null,null,null,null,null,null,null,null,null,null,false]
[null,"APORTE","VALOR"]
[null,"Nº PLANILLA / Nº RADICACIÓN PAGO SEGURIDAD SOCIAL ","Numero Planilla",null,null,null,null,null,null,null,null,"registre el numero de planilla objeto de pago"]
[null,"DIAS COTIZACION SEGURIDAD SOCIAL","Dias Cotizados",null,null,null,null,null,null,null,"SI","registre los dias de pago de seguridad social"]
[null,"IBC",{"$f":"IF((C55*40%)<877803,877803,C55*40%)","v":{"$error":"#VALUE!"}},null,null,null,null,null,null,null,null,"si usted aporta un valor mayor al establecido por la  norma.. Por favor solicte la clave al ingeniero de sistemas- con el objetivo de que pueda hacer el ajuste"]
[null,"APORTE OBLIGATORIO Y VOLUNTARIOS A SALUD",{"$f":"ROUNDUP(((($C$61*12.5%)/30)*C60),-2)","v":{"$error":"#VALUE!"}},null,null,null,null,"I",null,null,null,"Si tiene aporte Pendiente Según Decreto 558, Marque las casillas en rojo según corresponda"]
[null,"APORTE OBLIGATORIO Y VOLUNTARIOS A FONDOS DE PENSIONES",{"$f":"ROUNDUP(IF(P126=1,(((($C$61*16%)/30)*C60)+S132),IF(P126=2,(((($C$61*16%)/30)*C60)+(S132*2)),IF(P126=2,(((($C$61*16%)/30)*C60)),((($C$61*16%)/30)*C60)))),-2)","v":{"$error":"#VALUE!"}},null,null,null,null,"II"]
[null,"APORTE OBLIGATORIO A FONDO DE SOLIDARIDAD PENSIONAL",{"$f":"ROUNDUP(IF(C61>(877803*4),C61*1%,0),-2)","v":{"$error":"#VALUE!"}},null,null,null,null,"III"]
[null,"ARL",{"$f":"ROUNDUP(IF(C67=\"I\",((($C$61*0.522%)/30)*C60),IF(C67=\"II\",((($C$61*1.044%)/30)*C60),IF(C67=\"III\",((($C$61*2.436%)/30)*C60),IF($C$67=\"IV\",(((C61*4.35%)/30)*C60),IF($C$67=\"V\",(((C61*6.96%)/30)*C60),\"error\"))))),-2)","v":{"$error":"#VALUE!"}},null,null,null,null,"IV"]
[null,"CAJA DE COMPENSACION",{"$f":"ROUNDUP(IF(P66,((($C$61*0.6%)/30)*C60),0),-2)","v":0},null,null,null,null,"V",null,null,null,"SI USTED PAGA CAJA DE COMPENSACION FAMILIAR, REGISTRE EL VALOR DEL APORTE ",null,null,null,false]
[null,"TIPO DE RIESGO ARL","I",null,null,null,null,null,null,null,null,"seleccione el tipo de riesgo"]
[]
[]
[]
[]
[]
[]
[]
[]
[]
[]
[]
[]
[]
[]
[]
[]
[]
[]
[]
[]
[]
[]
[]
[]
[]
[]
[]
[]
[]
[]
[]
[]
[]
[]
[]
[]
[]
[]
[]
[]
[]
[]
[]
[]
[]
[]
[]
[]
[]
[]
[]
[]
[]
[]
[]
[]
[]
[]
[null,"APORTE PENDIENTE AFP DECRETO 558",null,null,null,null,null,null,null,null,null,null,null,null,null,3,false]
[]
[]
[]
[null,null,null,null,null,null,null,null,null,null,null,"SI(P126;((($C$61*16%)/30)*C60)+S132);"]
[null,null,null,null,null,null,null,null,null,null,null,"REDONDEAR.MAS(SI(P57;((($C$61*3%)/30)*C60);((($C$61*16%)/30)*C60));-2)",null,null,null,null,null,null,140500,26400]
[null,null,null,null,null,null,null,null,null,null,null,null,null,null,null,null,null,null,{"$f":"S131-T131","v":114100}]

{"sheet":"PARA IMPRIMIR","index":1,"n_rows":61,"n_cols":12,"rows_kept":61,"cut":false,"hidden":false,"merged":[[2,2,4,4],[9,9,9,10],[14,8,14,10],[17,9,18,9],[17,10,18,10],[8,8,8,9],[11,9,11,11],[8,3,8,6],[14,6,14,7],[14,4,14,5],[9,3,9,5],[9,6,9,7],[10,6,10,8],[10,9,10,11],[13,2,13,11],[5,3,5,11],[17,11,18,11],[31,5,31,11],[21,2,24,8],[27,4,27,5],[27,6,27,7],[21,9,22,11],[23,9,24,11],[26,2,26,11],[16,7,16,10],[17,4,18,4],[17,7,18,7],[1,1,59,1],[15,2,15,11],[39,2,39,11],[36,2,36,3],[35,2,35,3],[44,10,44,11],[31,2,32,2],[41,2,44,9],[10,2,11,2],[33,2,33,3],[34,2,34,3],[7,2,7,11],[58,10,58,11],[1,12,59,12],[12,2,12,11],[19,2,19,11],[45,2,45,11],[1,2,1,11],[59,2,59,11],[46,2,46,11],[47,10,47,11],[48,10,48,11],[29,3,29,11],[47,2,53,9],[53,10,53,11],[40,10,43,11],[10,3,11,5],[30,2,30,11],[38,2,38,3],[2,5,4,7],[2,8,4,11],[51,10,52,11],[60,2,60,11],[27,8,27,9],[55,2,58,9],[57,10,57,11],[33,5,38,11],[40,2,40,9],[27,10,27,11],[28,10,28,11],[31,3,32,4],[20,2,20,11],[17,8,18,8],[16,5,16,6],[17,5,18,6]]}
[]
[]
[null,null,null,null,null,"FORMATO CUENTA DE COBRO \nPAGO CONTRATISTAS"]
[]
[]
[null,null,"FECHA ",{"$f":"+'PARA LLENAR'!C5","v":"Fecha"}]
[]
[null,null,"DATOS DEL CONTRATISTA"]
[null,null,"Nombres y apellidos contratista:",{"$f":"'PARA LLENAR'!C6","v":"Nombre"},null,null,null,"C.C.",{"$f":"'PARA LLENAR'!C7","v":"Cedula"},null,"TELÉFONO",{"$f":"'PARA LLENAR'!C8","v":"Telefono"}]
[null,null,"Correo electrónico contratista:",{"$f":"'PARA LLENAR'!C9","v":"mail"},null,null,"Es declarante\nde renta?",null,{"$f":"+'PARA LLENAR'!C20","v":"NO"},"Es Pensionado?",null,{"$f":"+'PARA LLENAR'!C21","v":"NO"}]
[null,null,"Clasificación Persona Natural",{"$f":"'PARA LLENAR'!C13","v":0},null,null,"Banco al cual consignar:",null,null,{"$f":"'PARA LLENAR'!C10","v":"Banco"}]
[null,null,null,null,null,null,"Tipo de Cuenta",{"$f":"'PARA LLENAR'!C11","v":0},"Nº Cuenta",{"$f":"'PARA LLENAR'!C12","v":"N° Cuenta"}]
[]
[null,null,"DATOS DEL CONTRATO Y PERIODO OBJETO DE PAGO"]
[null,null,"Nº CONTRATO",{"$f":"+'PARA LLENAR'!C34","v":"N° Contrato"},"Nº DISPONIBILIDAD ",null,{"$f":"+'PARA LLENAR'!C33","v":"CDP"},null,"Nº REGISTRO  PPTAL ",null,null,{"$f":"+'PARA LLENAR'!C35","v":"RP"}]
[]
[null,null,"Valor Total del Contrato",{"$f":"+'PARA LLENAR'!C38","v":"Valor total"},"N ° Pago","%AVANCE ",null,"Periodo objeto de pago",null,null,null,"VALOR PAGO MENSUAL"]
[null,null,"Saldo Anterior del Contrato",{"$f":"+'PARA LLENAR'!C45","v":"Saldo"},{"$f":"+'PARA LLENAR'!C44","v":"N° pago"},{"$f":"100%-(D19/D17)","v":{"$error":"#VALUE!"}},null,"del",{"$f":"+'PARA LLENAR'!C42","v":"Inicio"},"al",{"$f":"+'PARA LLENAR'!C43","v":"Fin"},{"$f":"+'PARA LLENAR'!C55","v":{"$error":"#VALUE!"}}]
[null,null,"Nuevo Saldo del Contrato",{"$f":"+'PARA LLENAR'!C46","v":{"$error":"#VALUE!"}}]
[]
[null,null,"DESCRIPCION DEL OBJETO CONTRACTUAL "]
[null,null,{"$f":"+'PARA LLENAR'!C18","v":"Objeto"},null,null,null,null,null,null,"PROYECTO ASOCIADO\nA ESTE  PAGO"]
[]
[null,null,null,null,null,null,null,null,null,{"$f":"+'PARA LLENAR'!C19","v":"EVENTOS RECREATIVOS Y DE LA ACTIVIDAD FISICA - EVENTOS CULTURALES"}]
[]
[]
[null,null,"RESUMEN PAGOS GENERADOS EN EL PERIODO OBJETO DE PAGO"]
[null,null,"INGRESOS DEL PERIODO",{"$f":"+'PARA LLENAR'!C55","v":{"$error":"#VALUE!"}},"TARIFA ICA (3X1.000-7X1.000)",null,"ESTAMPILLAS ",null,"OTRAS",null,"VALOR A PAGAR"]
[null,null,"TOTAL INGRESOS DEL PERIODO",{"$f":"SUM(D28:D28)","v":{"$error":"#VALUE!"}},{"$f":"+'PARA LLENAR'!C51","v":7.0000000000000001E-3},{"$f":"+E29*D29","v":{"$error":"#VALUE!"}},{"$f":"+'PARA LLENAR'!C52","v":0},{"$f":"+D29*G29","v":{"$error":"#VALUE!"}},{"$f":"+'PARA LLENAR'!C53","v":0},{"$f":"+I29*D29","v":{"$error":"#VALUE!"}},{"$f":"+D29-F29-H29-J29","v":{"$error":"#VALUE!"}}]
[null,null,"SON:   ",{"$f":"Num_texto(K29)","v":{"$error":"#VALUE!"}}]
[null,null,"LIQUIDACIÓN DE PAGO A SEGURIDAD SOCIAL Y LIQUIDACIÓN DEL NETO A PAGAR"]
[null,null,"Nº Planilla PILA, o , Nº Radiocación pago SS",{"$f":"+'PARA LLENAR'!C59","v":"Numero Planilla"},null,"DATOS SEGURIDAD SOCIAL"]
[null,null,null,null,null,"EPS",{"$f":"+'PARA LLENAR'!C15","v":"EPS"},"FONDO DE  PENSIONES",{"$f":"+'PARA LLENAR'!C14","v":"Pension"},{"$f":"+'PARA LLENAR'!C16","v":"ARL"},"OTROS",{"$f":"+'PARA LLENAR'!C17","v":"n/a"}]
[null,null,"IBC     ",null,{"$f":"+'PARA LLENAR'!C61","v":{"$error":"#VALUE!"}},"OBSERVACIONES: ACTIVIDADES DESARROLLADAS DURANTE EL PERIODO OBJETO DE PAGO/SEGÚN INFORME MENSUAL DE ACTIVIDADES ADJUNTO"]
[null,null,"Aporte obligatorio a seguridad social salud",null,{"$f":"+'PARA LLENAR'!C62","v":{"$error":"#VALUE!"}}]
[null,null,"Aporte obligatorio a seguridad social Pensión",null,{"$f":"+'PARA LLENAR'!C63","v":{"$error":"#VALUE!"}}]
[null,null,"Aporte obligatorio a Fondo de solidaridad Pensional",null,{"$f":"+'PARA LLENAR'!C64","v":{"$error":"#VALUE!"}}]
[null,null,"Otros ",null,{"$f":"+'PARA LLENAR'!C66","v":0}]
[null,null,"ARL",null,{"$f":"+'PARA LLENAR'!C65","v":{"$error":"#VALUE!"}}]
[]
[null,null,"PARA LOS EFECTOS LEGALES CERTIFICO, BAJO LA GRAVEDAD DEL JURAMENTO, QUE:",null,null,null,null,null,null,null,{"$f":"D9","v":"Nombre"}]
[null,null,"1. Cumplí a cabalidad las actividades del objeto contractual de acuerdo al informe anexo\n2. Los documentos soporte suministrados contienen el pago de Seguridad Social en Salud y Pensión, los aportes voluntarios a cuentas AFC y FVP, correspondientes a los ingresos provenientes del contrato objeto del presente pago y certifico que no han sido utilizados en la disminución de la Base de Retención en la Fuente en ningún otro contrato\n3. Pertenezco a la categoria descrita en la casilla \"Clasificación Persona Natural/contratista \"\n4. Toda la información aquí suministra es verídica\n5. He leído y entendido la descripción de cada uno de los campos aquí diligenciados. \n6. NO he  contratado o vinculado dos o mas trabajadores asociado a mi actividad para cumplir con el objeto de este contrato. \n7.He actualizado el RUT de acuerdo a las disposiciones legales en materia tributaria. \n8.Conozco las fechas de pago establecidas por la entidad y en caso de no cumplir con dichos plazos, acepto las consecuencias  causadas por el incumplimiento."]
[]
[]
[null,null,null,null,null,null,null,null,null,null,"EL CONTRATISTA"]
[]
[null,null,"CERTIFICACIÓN DEL SUPERVISOR DEL CONTRATO"]
[null,null,"En mi calidad de Supervisor del contrato de prestación de servicios personales aqui relacionado, CERTIFICO:\n1.- Que El Contratista cumplió a cabalidad las obligaciones contractuales pactadas\n2.-  Que El Contratista desarrolló las actividades descritas en el presente informe, dentro del período de cobro\n3.- Que he verificado el pago de los aportes obligatorios al Sistema General de Seguridad Social realizados por el contratista por medio de la planilla relacionada en el presente informe y que los mismos han sido liquidados de conformidad con las normas vigentes.",null,null,null,null,null,null,null,"Autorizo el presente pago."]
[null,null,null,null,null,null,null,null,null,null,"El Supervisor"]
[]
[]
[null,null,null,null,null,null,null,null,null,null,{"$f":"+'PARA LLENAR'!C24","v":"JEIMMY LORENA OLAYA"}]
[]
[null,null,null,null,null,null,null,null,null,null,{"$f":"+'PARA LLENAR'!C25","v":"SUB GERENTE ADMINISTRATIVA Y FINANCIERA"}]
[]
[null,null,"Teniendo en cuenta las certificaciones suscritas  por el contratista y por el supervisor del contrato arriba relacionado, autorizo el presente pago."]
[]
[null,null,null,null,null,null,null,null,null,null,{"$f":"+'PARA LLENAR'!C29","v":"FREDDY ERNESTO ESPINOSA CÁCERES"}]
[null,null,null,null,null,null,null,null,null,null,"ORDENADOR DEL GASTO"]
[]
[null,null,"PA-FT-08-01 Vers .04"]

{"sheet":"Hoja3","index":2,"n_rows":29,"n_cols":3,"rows_kept":29,"cut":false,"hidden":true,"merged":[]}
["TARIFAS",{"$f":"3/1000","v":3.0000000000000001E-3},{"$f":"+B33/1000","v":0}]
[null,{"$f":"7/1000","v":7.0000000000000001E-3}]
[]
["ESTAMPILLAS",4.4999999999999998E-2]
[]
["OTROS"]
[]
[]
["PROYECTOS"]
["ESCUELA DE FORMACION DEPORTIVA"]
["ORGANISMOS DEPORTIVOS"]
["EVENTOS DEPORTIVOS"]
["MANTENIMIENTO DE ESCENARIOS DEPORTIVOS"]
["INFRAESTRUCTURA DEPORTIVA, RECREATIVA Y  DE LA ACTIVIDAD FISICA"]
["ATENCION A POBLACION VULNERABLE"]
["ESTUDIANTES FELICES, ACTIVOS Y SALUDABLES"]
["CENTRO DE EDUCACION MOTRIZ"]
["ACTIVIDAD FISICA PARA LA SALUD"]
["CICLOVIDA"]
["EVENTOS RECREATIVOS Y DE LA ACTIVIDAD FISICA"]
["2.8. CAPACITACIONES PROYECTOS ACTIVIDAD FÍSICA Y RECREATIVA"]
["ESCUELAS  DE FORMACION ARTISTICA Y CULTURAL"]
["EVENTOS CULTURALES"]
["BIBLIOTECAS PUBLICAS"]
["ACERCAMIENTO DE LA PRIMERA INFANCIA A LAS ARTES"]
[" MIL GUITARRAS"]
["PORTAFOLIO DE ESTIMULOS"]
["IDENTIFICACION Y SALVAGUARDIA DE BIC-BIENES DE INTERES CULTURAL"]
["MANTENIMIENTO DE BIC"]